bitfinex/quotes_ETHUSD_20241130
["timestamp","ask_amount","ask_price","bid_price","bid_amount"]
[1732942560741,0.0116,3649.9,3649.2,2.74025]
[1732942560926,3.30141,3649.9,3649.2,2.74025]
[1732942561372,0.55,3649.7,3649.1,2.74038]
[1732942561943,0.55,3649.7,3649.2,2.7403]
[1732942562168,0.0116,3649.9,3649.2,2.7403]
[1732942562327,0.55,3649.7,3649.2,2.7403]
[1732942562845,0.55,3649.8,3649.2,2.7403]
[1732942564578,3.28989,3649.8,3649.2,2.7403]
[1732942564736,0.55,3649.7,3649.2,2.7403]
[1732942565337,0.5616,3649.9,3648.7,2.49724192]
[1732942565553,0.0116,3649.9,3649.2,2.74031]
[1732942566479,0.55,3649.7,3649.2,2.74031]
[1732942567469,0.0116,3649.9,3649.0,0.95164192]
[1732942567668,0.55,3649.8,3649.2,2.74027]
[1732942568050,3.28988,3649.8,3649.2,2.74027]
[1732942570594,0.55,3649.6,3649.1,2.74039]
[1732942571886,0.0116,3649.5,3648.7,1.5456]
[1732942572057,0.0116,3649.0,3648.0,0.95164192]
[1732942572447,0.55,3648.8,3648.2,2.74102]
[1732942573578,0.55,3648.7,3648.2,2.74102]
[1732942573765,3.29071,3648.7,3648.0,3.69286192]
[1732942573978,2.741,3648.3,3647.6,5.33844192]
[1732942574153,0.0116,3648.4,3648.1,2.74115]
[1732942574354,0.55,3648.6,3648.1,2.74113]
[1732942574559,0.0116,3649.6,3648.9,2.74054]
[1732942575056,0.0116,3649.6,3648.7,4.38599]
[1732942575057,0.0116,3649.6,3649.1,2.74032]
[1732942575257,0.0116,3649.6,3649.0,2.7404]
[1732942575258,0.0116,3649.9,3649.2,2.74031]
[1732942575559,2.7514,3649.9,3649.2,2.74031]
[1732942576594,0.0116,3649.9,3649.3,2.74023]
[1732942577304,0.0116,3649.9,3649.3,2.160763]
[1732942577600,0.0116,3651.0,3650.2,2.73957]
[1732942577799,0.0116,3651.0,3650.4,2.73936]
[1732942578898,0.5616,3651.0,3650.4,2.73936]
[1732942579261,0.5616,3651.0,3650.2,2.73957]
[1732942579457,0.0116,3651.0,3650.3,2.73949]
[1732942579696,0.0116,3651.0,3650.4,2.73939]
[1732942580455,0.0116,3651.0,3650.1,5.30398192]
[1732942580456,0.0116,3651.0,3650.7,2.73919]
[1732942580959,0.0116,3651.0,3650.5,2.73933]
[1732942581403,0.0116,3651.0,3650.6,2.73926]
[1732942585614,0.55,3650.8,3650.1,2.73961]
[1732942586117,3.28913,3650.8,3650.1,2.73961]
[1732942586532,0.55,3650.5,3649.4,2.10783867]
[1732942586689,0.0116,3650.4,3649.9,2.73978]
[1732942587216,0.0116,3650.4,3649.5,2.13831087]
[1732942587217,0.0116,3650.4,3650.0,2.73972]
[1732942588128,0.0116,3650.4,3649.7,2.73987]
[1732942588422,0.0116,3650.4,3650.0,2.73968]
[1732942589119,0.0116,3650.4,3650.1,2.73963]
[1732942590229,0.0116,3650.4,3649.9,2.73973]
[1732942590820,0.0116,3650.4,3650.1,2.73963]
[1732942591319,0.0116,3650.7,3650.3,2.73943]
[1732942591825,0.55,3650.9,3650.1,4.79569]
[1732942591826,0.0116,3651.0,3650.4,2.73942]
[1732942592050,0.0116,3651.0,3650.2,2.73957]
[1732942592051,0.0116,3651.0,3650.5,2.73934]
[1732942592187,0.0116,3651.0,3650.1,2.05605]
[1732942592188,0.5616,3651.0,3650.6,2.73927]
[1732942592388,0.0116,3651.3,3650.2,0.205605]
[1732942592595,2.75036,3651.3,3650.6,2.73925]
[1732942593500,0.0116,3651.3,3650.6,2.73925]
[1732942593692,0.55,3651.1,3650.6,2.73925]
[1732942594232,0.55,3651.1,3650.4,2.73941]
[1732942594391,0.55,3651.0,3650.4,2.73941]
[1732942594596,0.55,3651.0,3650.2,2.73957]
[1732942594905,0.55,3651.0,3650.4,2.7394]
[1732942595638,0.55,3651.0,3650.5,2.73934]
[1732942595794,0.0116,3650.4,3649.6,2.74002]
[1732942596132,0.0116,3650.4,3649.2,1.5081]
[1732942596133,0.5616,3650.4,3649.8,2.73985]
[1732942596309,0.5616,3650.4,3649.2,1.53549037]
[1732942596310,0.55,3650.6,3650.0,2.73966]
[1732942597003,0.0116,3650.7,3650.1,2.7396]
[1732942597528,0.55,3650.6,3650.1,2.7396]
[1732942598704,0.55,3650.6,3649.9,4.24788]
[1732942599717,3.2893,3650.6,3649.9,4.24788]
[1732942600223,0.55,3650.6,3650.1,2.73959]
[1732942600529,0.5616,3650.7,3650.1,2.73959]
[1732942601032,3.30081,3650.7,3650.1,2.73959]
[1732942601393,3.30081,3650.7,3649.9,4.24786]
[1732942601737,3.30081,3650.7,3650.0,2.73969]
[1732942603028,3.30081,3650.7,3650.1,2.73962]
[1732942603243,0.0116,3650.7,3650.1,2.73962]
[1732942603735,0.0116,3650.7,3650.2,2.73956]
[1732942606635,0.55,3650.5,3650.0,2.73969]
[1732942607138,0.5616,3650.7,3650.0,2.73969]
[1732942607445,0.55,3650.5,3650.1,2.73963]
[1732942607600,0.5616,3650.7,3650.1,2.73963]
[1732942607799,0.55,3650.5,3650.1,2.73963]
[1732942607999,0.5616,3650.7,3650.1,2.73963]
[1732942608235,0.25654211,3650.6,3650.1,2.73963]
[1732942608450,0.5616,3650.7,3650.1,2.73963]
[1732942608612,0.55,3650.5,3650.1,2.73963]
[1732942608815,0.5616,3650.7,3650.1,2.73963]
[1732942609020,0.55,3650.5,3650.1,2.73963]
[1732942609329,0.5616,3650.7,3650.1,2.73963]
[1732942609647,0.55,3650.5,3650.1,2.73963]
[1732942610019,0.43916526,3651.7,3651.4,2.73866]
[1732942610324,0.41010994,3652.1,3651.7,2.73844]
[1732942610536,0.25631022,3652.0,3651.7,2.73844]
[1732942610716,0.0116,3652.3,3651.7,2.73844]
[1732942611116,0.0116,3652.3,3651.6,2.76590171]
[1732942611503,0.0116,3652.3,3651.7,2.73845]
[1732942611706,0.0116,3652.3,3651.6,0.52903378]
[1732942611900,0.0116,3652.3,3651.8,2.73834]
[1732942613255,0.0116,3652.3,3651.7,2.73839]
[1732942613752,0.0116,3652.3,3651.5,2.73857]
[1732942614048,0.55,3651.8,3651.2,2.73881]
[1732942614348,0.5616,3651.8,3651.0,2.73896]
[1732942614650,0.55,3651.6,3651.1,0.547807]
[1732942615143,0.0116,3651.8,3651.2,2.73875]
[1732942615321,0.5616,3651.8,3651.3,2.73874]
[1732942615849,3.3,3651.8,3651.1,3.286647]
[1732942616148,3.3,3651.8,3651.1,2.73884]
[1732942616539,0.5616,3651.8,3651.2,2.73876]
[1732942618307,0.0116,3651.8,3651.1,1.573]
[1732942618511,0.0116,3651.8,3651.5,2.73859]
[1732942621309,0.0116,3651.8,3651.3,2.73874]
[1732942621543,0.0116,3651.8,3651.4,2.73861]
[1732942621944,0.5616,3651.8,3651.2,2.73876]
[1732942622516,3.28845,3651.7,3651.0,2.73896]
[1732942622733,0.55,3651.6,3651.0,2.73896]
[1732942623152,0.55,3651.6,3651.1,2.73889]
[1732942623657,0.55,3651.6,3650.4,2.73936]
[1732942623658,2.73876,3651.3,3650.4,4.31241]
[1732942623863,0.55,3651.6,3650.4,4.31241]
[1732942623864,0.55,3651.0,3650.6,2.73923]
[1732942624013,0.55,3651.0,3650.6,2.73926]
[1732942624211,0.0116,3651.1,3650.7,2.73914]
[1732942625057,0.55,3651.5,3650.6,0.547867]
[1732942625211,0.55,3651.5,3650.3,2.10635512]
[1732942625212,0.5616,3651.5,3651.0,2.73896]
[1732942625411,0.5616,3651.5,3650.9,2.73905]
[1732942625412,0.0116,3651.5,3650.9,2.73905]
[1732942625751,0.0116,3651.5,3651.2,2.7388]
[1732942625910,0.5616,3651.8,3651.3,2.73874]
[1732942626456,2.7385,3651.7,3650.9,2.73901]
[1732942626750,0.5616,3651.4,3650.7,2.73918]
[1732942626956,3.30032,3651.4,3650.7,2.73918]
[1732942627155,3.30032,3651.4,3650.8,2.73912]
[1732942627975,0.5616,3651.4,3650.5,2.73933]
[1732942628121,0.5616,3651.4,3650.9,2.73901]
[1732942628813,0.0116,3651.4,3650.9,2.73901]
[1732942631109,0.0116,3651.4,3649.7,2.73994]
[1732942631110,0.55,3650.1,3649.5,2.74003]
[1732942633165,0.0116,3650.3,3649.3,4.27534]
[1732942633365,0.55,3650.1,3649.4,2.74016]
[1732942633560,0.55,3650.1,3649.3,0.427534]
[1732942633783,0.55,3650.2,3649.7,2.73993]
[1732942634106,2.75111,3650.3,3649.2,2.10635512]
[1732942634107,0.0116,3650.3,3649.8,0.02739747]
[1732942634276,0.55,3650.1,3648.8,2.10635512]
[1732942634475,0.0116,3649.8,3649.1,2.74034]
[1732942634679,3.29003,3649.6,3648.9,4.2756]
[1732942634877,0.55,3649.6,3649.0,2.74042]
[1732942635111,0.0116,3649.8,3649.1,2.74039]
[1732942635588,2.74002,3649.6,3648.9,5.18786351]
[1732942635777,0.55,3649.5,3648.9,5.18786351]
[1732942636103,0.55,3649.3,3648.9,0.91226351]
[1732942636301,0.0116,3649.2,3648.3,4.27609]
[1732942636503,0.55,3649.1,3648.5,2.74079]
[1732942637177,0.55,3649.1,3648.6,2.74077]
[1732942637978,0.0116,3649.2,3648.7,2.74067]
[1732942638303,0.0116,3649.2,3648.8,2.7406]
[1732942638525,3.29022,3649.4,3648.7,0.274067]
[1732942638526,0.55,3649.4,3648.7,0.274067]
[1732942638728,0.0116,3649.5,3648.9,2.74053]
[1732942639392,0.0116,3649.5,3649.1,2.74039]
[1732942640015,0.55,3649.7,3649.1,2.74039]
[1732942640016,0.55,3649.7,3649.1,5.48078]
[1732942640418,0.0116,3649.8,3649.3,2.74024]
[1732942640623,0.0116,3650.2,3649.2,0.02740059]
[1732942640947,0.0116,3650.2,3649.6,2.74]
[1732942641836,0.0116,3650.6,3650.0,2.73966]
[1732942643304,0.55,3650.5,3649.8,2.73987]
[1732942643632,0.55,3650.5,3649.9,2.73978]
[1732942643817,0.5616,3650.6,3649.9,2.73978]
[1732942644203,0.0116,3650.6,3649.9,2.73978]
[1732942644396,0.55,3650.5,3649.9,2.73978]
[1732942645833,0.55,3650.5,3650.0,2.73971]
[1732942646059,0.0116,3650.6,3650.0,2.73971]
[1732942647864,0.0116,3650.6,3650.1,2.73963]
[1732942648067,0.0116,3650.6,3650.3,2.73949]
[1732942649168,2.73898,3651.0,3650.3,2.73949]
[1732942649169,0.0116,3651.0,3650.4,2.76681415]
[1732942649376,0.0116,3651.0,3650.6,2.73926]
[1732942649527,0.0116,3651.0,3650.4,2.73942]
[1732942649732,2.75062,3651.0,3650.3,2.73949]
[1732942650469,2.75062,3651.0,3650.4,2.7394]
[1732942650678,3.2891,3650.9,3649.9,1.5808]
[1732942650876,0.0116,3651.0,3650.2,2.73952]
[1732942651170,2.73913,3650.8,3650.2,2.73952]
[1732942651371,0.55,3650.7,3650.2,2.73952]
[1732942652469,0.55,3650.7,3649.8,2.73985]
[1732942652770,0.55,3650.7,3650.1,2.73964]
[1732942653068,0.55,3650.7,3649.9,0.02739388]
[1732942653239,0.0116,3650.9,3650.2,2.73956]
[1732942653472,2.73914,3650.8,3650.2,2.73956]
[1732942653863,0.55,3650.7,3650.2,2.73956]
[1732942655742,0.55,3650.7,3650.1,2.73964]
[1732942655973,3.28923,3650.7,3650.1,2.73964]
[1732942657876,3.30067,3650.9,3650.2,2.73956]
[1732942658073,3.30067,3650.9,3649.7,0.02739389]
[1732942658074,3.30067,3650.9,3650.3,2.73947]
[1732942658996,3.30067,3650.9,3650.1,2.73959]
[1732942659548,0.55,3650.7,3650.1,2.73959]
[1732942662403,0.55,3650.7,3650.3,2.73948]
[1732942662692,0.0116,3650.9,3650.1,1.6024]
[1732942662877,0.5616,3650.9,3650.5,2.7393]
[1732942663081,0.5616,3650.9,3650.6,2.73927]
[1732942663294,0.0116,3650.9,3650.6,2.73927]
[1732942663589,0.0116,3651.3,3650.8,2.73905]
[1732942663752,0.0116,3651.3,3651.0,2.73897]
[1732942667064,2.73852,3651.6,3651.0,2.73897]
[1732942667065,0.0116,3651.6,3651.1,2.73886]
[1732942667384,0.15380412,3652.0,3651.5,2.73858]
[1732942667712,0.15378139,3652.5,3651.6,0.273858]
[1732942667858,0.25586848,3652.4,3651.8,2.73836]
[1732942668195,0.25586848,3652.4,3651.1,1.5605]
[1732942668353,0.0116,3652.5,3651.8,2.73835]
[1732942668758,2.74947,3652.5,3651.8,2.73835]
[1732942669467,0.0116,3652.5,3651.9,2.73829]
[1732942669868,0.0116,3652.5,3651.7,2.73844]
[1732942670070,0.0116,3652.5,3652.0,2.7382]
[1732942670896,0.5616,3652.5,3652.0,2.7382]
[1732942672509,2.738,3652.3,3651.6,2.73845]
[1732942672803,3.29945,3652.5,3651.8,2.73834]
[1732942673379,0.5616,3652.5,3651.9,2.73824]
[1732942673581,0.0116,3652.5,3651.9,2.73824]
[1732942673902,0.5616,3652.5,3651.9,2.73824]
[1732942674104,0.5616,3652.5,3651.9,3.3562844]
[1732942676472,2.74945,3652.5,3651.9,3.3562844]
[1732942676671,0.55,3652.4,3651.9,3.3562844]
[1732942677315,0.0116,3652.5,3651.9,3.3562844]
[1732942677612,0.0116,3652.5,3652.1,2.73813]
[1732942678998,0.0116,3652.8,3652.4,2.73791]
[1732942679200,0.0116,3652.8,3652.3,2.73799]
[1732942679517,2.73783,3652.6,3651.9,2.73827]
[1732942679674,2.73783,3652.6,3652.0,2.73822]
[1732942680390,0.55,3652.5,3652.0,2.73822]
[1732942680682,0.55,3652.5,3652.0,3.285885]
[1732942681195,0.0116,3652.8,3652.3,2.73798]
[1732942681505,0.5616,3653.0,3652.4,2.73789]
[1732942681711,3.5616,3653.0,3652.4,2.73789]
[1732942682591,0.55,3652.9,3652.2,4.27194]
[1732942682787,3.28773,3652.7,3652.0,3.285865]
[1732942682987,0.5616,3652.6,3652.0,3.285865]
[1732942683198,3.2994,3652.6,3652.0,2.7382]
[1732942686029,0.0116,3652.6,3652.1,2.73809]
[1732942686188,0.0116,3652.6,3652.2,2.73802]
[1732942687706,0.0116,3652.6,3651.6,0.02737903]
[1732942687930,0.0116,3652.6,3651.5,4.27244]
[1732942688135,0.0116,3652.6,3652.1,2.73808]
[1732942688504,0.5616,3652.6,3652.1,2.73808]
[1732942689907,0.0116,3652.6,3652.3,2.73799]
[1732942690236,0.0116,3652.6,3652.1,2.73808]
[1732942692936,0.5616,3652.6,3652.1,2.73808]
[1732942693136,0.5616,3652.6,3651.9,2.73829]
[1732942693345,0.55,3652.4,3651.9,2.73829]
[1732942693914,0.55,3652.5,3652.0,2.7382]
[1732942694110,0.0116,3652.6,3652.1,2.73809]
[1732942694439,0.0116,3652.6,3652.2,2.73806]
[1732942694960,0.0116,3652.6,3651.9,2.73828]
[1732942695119,0.0116,3652.6,3651.9,3.15015332]
[1732942696326,2.7379,3652.5,3651.9,2.73828]
[1732942696624,0.55,3652.3,3651.7,2.73843]
[1732942697809,0.55,3652.3,3651.0,2.73893]
[1732942697810,0.0116,3652.1,3650.8,2.73905]
[1732942698016,1.50047129,3652.3,3650.8,2.73905]
[1732942698017,0.55,3651.6,3650.9,2.73899]
[1732942698824,0.55,3651.6,3651.0,2.73896]
[1732942699749,3.28854,3651.6,3651.0,2.73896]
[1732942699914,3.28854,3651.6,3650.8,4.6918477]
[1732942699915,0.55,3651.5,3650.8,1.9527977]
[1732942700117,0.55,3651.5,3650.9,2.73904]
[1732942700651,0.55,3651.5,3650.9,3.5771919]
[1732942700857,0.55,3651.5,3650.9,0.8381519]
[1732942701017,0.55,3651.5,3651.0,2.73896]
[1732942701351,0.55,3651.5,3650.3,2.73945]
[1732942701352,0.55,3650.7,3650.1,1.6515]
[1732942701558,0.5616,3650.7,3650.1,1.6515]
[1732942701863,0.0116,3650.7,3650.3,2.73944]
[1732942702414,0.55,3650.9,3650.4,2.73941]
[1732942702610,0.55,3651.2,3650.4,0.02739168]
[1732942702812,0.55,3650.9,3650.4,2.76681168]
[1732942703035,0.55,3650.9,3650.4,2.73942]
[1732942703234,3.28905,3650.9,3650.2,2.73953]
[1732942704247,3.28905,3650.9,3649.9,2.73978]
[1732942704248,0.55,3650.5,3649.9,2.73978]
[1732942704418,0.55,3650.5,3650.0,0.273978]
[1732942704758,2.73912,3650.8,3650.0,0.273978]
[1732942704759,0.55,3650.7,3650.0,0.273978]
[1732942705058,0.55,3650.7,3650.1,2.76703307]
[1732942705850,0.55,3650.7,3650.1,2.73964]
[1732942706084,0.0116,3651.0,3650.2,0.69777944]
[1732942706213,0.5616,3651.0,3650.4,2.73942]
[1732942708746,0.55,3650.9,3650.2,2.73957]
[1732942708948,3.28907,3650.9,3650.2,2.73957]
[1732942709928,0.0116,3651.0,3650.1,2.73965]
[1732942709929,2.75057,3651.0,3650.1,2.73965]
[1732942710129,0.55,3650.9,3650.4,2.73941]
[1732942711759,0.0116,3651.0,3650.4,2.73941]
[1732942712765,0.5616,3651.0,3650.4,2.73941]
[1732942713056,0.5616,3651.0,3650.5,2.73932]
[1732942714062,0.14208216,3651.7,3650.5,2.133489]
[1732942714354,0.0116,3651.3,3650.9,2.73903]
[1732942714855,0.0116,3651.3,3650.8,2.73911]
[1732942715629,0.5616,3651.3,3650.8,2.73911]
[1732942716441,0.5616,3651.3,3650.6,2.73927]
[1732942716442,3.30035,3651.3,3650.6,2.73927]
[1732942716643,2.73886,3651.2,3650.6,2.73927]
[1732942716857,0.55,3651.1,3650.5,2.7393]
[1732942717155,0.55,3651.1,3650.6,2.73925]
[1732942717759,0.55,3651.1,3650.5,2.7393]
[1732942717760,0.0116,3650.8,3650.3,2.73949]
[1732942717959,0.0116,3650.8,3650.0,2.81004929]
[1732942718138,0.0116,3650.8,3650.5,2.73928]
[1732942719050,3.2889,3651.1,3650.1,0.28100493]
[1732942719051,0.55,3651.1,3650.6,2.73924]
[1732942719225,0.55,3651.1,3650.1,0.28100493]
[1732942719226,0.0116,3651.1,3650.8,2.73906]
[1732942719425,0.0116,3651.3,3651.0,2.73896]
[1732942720363,0.0116,3651.3,3651.1,2.73889]
[1732942720528,2.88112743,3652.0,3651.3,2.73872]
[1732942720529,0.0116,3651.6,3651.3,2.73872]
[1732942721534,0.0116,3651.6,3651.1,2.76627594]
[1732942722173,0.0116,3651.6,3651.1,2.73889]
[1732942724060,0.0116,3651.6,3651.2,2.7388]
[1732942728275,0.0116,3651.6,3651.0,1.5856]
[1732942728637,0.0116,3651.6,3651.1,2.73889]
[1732942730131,0.5616,3651.6,3651.1,2.73889]
[1732942730335,0.0116,3651.6,3651.1,2.73889]
[1732942730636,0.5616,3651.6,3651.1,2.73889]
[1732942730837,3.30017,3651.6,3650.9,2.73903]
[1732942731773,3.30017,3651.6,3651.0,2.73892]
[1732942733202,0.0116,3651.6,3651.1,2.73887]
[1732942734804,0.55,3651.5,3650.9,2.73899]
[1732942735704,0.55,3651.5,3651.0,2.73896]
[1732942737510,0.0116,3651.6,3651.4,2.73862]
[1732942737668,0.0116,3651.9,3651.4,2.73862]
[1732942738013,0.0116,3651.9,3651.4,2.73861]
[1732942738789,0.5616,3651.9,3651.4,2.73861]
[1732942738993,0.41019019,3652.2,3651.5,0.698121]
[1732942739192,0.0116,3652.5,3652.1,2.73815]
[1732942739403,0.0116,3652.5,3652.3,2.73799]
[1732942740072,0.0116,3652.5,3651.9,2.73827]
[1732942740410,0.0116,3652.5,3652.1,2.73808]
[1732942741118,0.0116,3652.5,3651.9,2.73828]
[1732942741119,0.0116,3652.5,3652.4,2.73792]
[1732942741275,0.0116,3652.7,3652.4,2.73792]
[1732942742287,0.0116,3652.7,3652.2,2.73806]
[1732942743171,0.0116,3652.7,3652.0,2.7382]
[1732942743403,0.0116,3652.7,3652.3,2.73799]
[1732942744474,0.0116,3652.7,3652.5,2.73779]
[1732942744675,0.0116,3652.7,3652.3,2.73799]
[1732942745110,0.0116,3652.7,3652.5,2.73784]
[1732942745685,0.0116,3652.7,3652.3,2.738]
[1732942746126,0.5616,3653.0,3652.3,3.25722713]
[1732942746308,0.0116,3653.0,3652.5,2.73778]
[1732942747603,0.0116,3653.0,3652.7,2.73768]
[1732942747802,0.14284116,3653.4,3652.7,4.24458]
[1732942748114,0.0116,3653.5,3652.9,2.73749]
[1732942749132,0.0116,3653.5,3653.1,2.73732]
[1732942749339,0.0116,3653.8,3653.4,2.73717]
[1732942749495,0.0116,3654.4,3653.5,2.73708]
[1732942749828,2.73652,3654.3,3653.4,2.73716]
[1732942750030,0.0116,3654.4,3653.7,2.73688]
[1732942750915,3.5616,3654.4,3653.7,2.73688]
[1732942751185,3.29806,3654.4,3653.7,2.73688]
[1732942751938,3.29806,3654.4,3653.2,2.10433583]
[1732942751939,0.0116,3654.4,3653.2,2.10433583]
[1732942752156,0.0116,3653.4,3652.9,2.73755]
[1732942753798,0.0116,3653.4,3653.0,2.73745]
[1732942754925,0.0116,3653.4,3652.8,2.73761]
[1732942755124,0.0116,3653.4,3652.9,2.73752]
[1732942755951,0.0116,3653.4,3653.0,2.73744]
[1732942757725,0.0116,3653.4,3653.1,2.73738]
[1732942758267,2.73753,3653.0,3652.0,2.73822]
[1732942758408,3.28753,3653.0,3652.4,2.73792]
[1732942759613,0.5616,3653.1,3652.5,2.73784]
[1732942760031,0.5616,3653.1,3652.0,0.429442]
[1732942760231,0.0116,3653.1,3652.7,2.73765]
[1732942760452,0.0116,3653.4,3653.0,2.73746]
[1732942760616,0.0116,3653.4,3652.8,2.73762]
[1732942761170,0.0116,3653.4,3653.0,2.73742]
[1732942761527,2.74856,3653.7,3653.1,2.73738]
[1732942761829,0.55,3653.6,3653.1,2.73738]
[1732942763013,0.55,3653.6,3652.7,0.429385]
[1732942763216,0.0116,3654.2,3653.6,2.737]
[1732942763471,0.0116,3654.2,3653.2,1.5562]
[1732942763628,0.0116,3654.2,3653.7,2.73693]
[1732942764745,3.29818,3654.2,3653.5,2.73705]
[1732942765413,0.5616,3654.2,3653.4,2.73716]
[1732942765662,0.5616,3654.2,3652.6,2.73773]
[1732942765663,2.73731,3653.3,3652.6,2.7377]
[1732942765957,0.5616,3653.2,3652.8,2.73762]
[1732942766160,0.0116,3653.2,3652.5,2.73785]
[1732942766362,0.55,3653.1,3652.5,3.38254683]
[1732942766528,0.55,3653.1,3652.8,2.7376]
[1732942766736,0.0116,3653.2,3652.2,1.6275]
[1732942766919,0.55,3653.1,3652.5,2.73784]
[1732942767260,0.0116,3653.5,3652.7,1.6275]
[1732942767471,0.0116,3653.8,3653.3,2.73719]
[1732942767672,0.55,3653.6,3653.1,2.73739]
[1732942767818,0.55,3653.6,3653.3,2.73724]
[1732942768219,0.0116,3653.8,3653.2,2.73732]
[1732942768432,0.0116,3653.8,3653.3,2.73719]
[1732942769259,0.0116,3653.8,3653.4,2.73715]
[1732942769434,3.0,3654.4,3653.4,2.73715]
[1732942769435,0.0116,3654.6,3653.5,1.6315]
[1732942769634,0.25579408,3654.5,3653.7,2.73692]
[1732942769817,3.00366408,3654.6,3653.9,2.73673]
[1732942770031,3.00366408,3654.6,3653.7,2.73692]
[1732942770032,2.74787,3654.6,3654.0,2.73671]
[1732942770233,0.0116,3654.6,3653.7,2.13170344]
[1732942770459,0.0116,3654.6,3654.3,2.73648]
[1732942771732,0.0116,3654.6,3653.8,5.47374]
[1732942771936,0.0116,3654.8,3654.3,2.73643]
[1732942772181,0.0116,3654.8,3654.4,2.73639]
[1732942772552,0.0116,3654.8,3654.1,2.73663]
[1732942772741,0.0116,3654.8,3654.1,2.73657]
[1732942772936,0.0116,3654.8,3654.3,2.73648]
[1732942773158,0.5616,3654.8,3654.1,2.73657]
[1732942774356,0.5616,3654.8,3654.2,2.73655]
[1732942774681,0.0116,3654.8,3654.2,2.73655]
[1732942775067,0.0116,3654.8,3654.2,0.27639139]
[1732942775271,0.0116,3654.8,3654.4,2.73641]
[1732942775639,0.0116,3654.8,3653.8,1.6315]
[1732942775838,0.0116,3654.8,3654.5,2.73634]
[1732942776239,0.55,3655.0,3654.5,2.73634]
[1732942778847,0.5616,3655.2,3654.5,2.73634]
[1732942779050,0.55,3655.1,3654.5,2.73634]
[1732942780052,0.5616,3655.2,3654.6,2.73625]
[1732942780447,0.5616,3655.2,3654.7,2.73619]
[1732942780650,0.0116,3655.2,3654.7,2.73619]
[1732942780963,0.0116,3655.2,3654.9,2.73602]
[1732942781169,0.0116,3655.2,3654.7,0.547253]
[1732942782153,0.0116,3655.2,3654.3,2.73647]
[1732942782348,0.55,3655.0,3654.4,2.73639]
[1732942782698,0.55,3655.1,3654.5,0.02736118]
[1732942782865,0.5616,3655.2,3654.6,2.73627]
[1732942783072,3.29743,3655.2,3654.6,2.73627]
[1732942783285,3.29743,3655.2,3654.4,2.7364]
[1732942783481,0.55,3655.0,3654.5,0.547289]
[1732942783680,0.0116,3655.2,3654.5,3.283589]
[1732942784000,0.0116,3655.2,3654.8,2.73612]
[1732942785160,0.5616,3655.2,3654.6,2.73622]
[1732942785599,0.5616,3655.2,3654.7,2.73619]
[1732942785760,0.5616,3655.2,3654.7,3.3381789]
[1732942786759,0.0116,3655.1,3654.7,0.6019889]
[1732942786984,0.0116,3655.1,3654.5,2.73633]
[1732942788002,0.55,3655.2,3655.1,2.7359]
[1732942788153,0.55,3655.2,3654.9,2.73599]
[1732942788359,0.55,3655.2,3654.6,1.5202]
[1732942788585,0.0116,3655.7,3655.0,2.73597]
[1732942788586,0.55,3655.5,3655.0,2.73597]
[1732942789595,0.55,3655.5,3654.7,3.09864358]
[1732942789772,3.28565,3655.5,3654.9,2.73605]
[1732942790502,0.55,3655.3,3654.7,3.09864358]
[1732942790683,0.0116,3655.4,3654.2,1.6646]
[1732942790886,2.74728,3655.4,3654.8,2.73611]
[1732942791084,2.7473,3655.4,3654.8,4.40071]
[1732942791300,0.55,3655.3,3654.8,4.40067]
[1732942791685,0.55,3655.3,3654.8,1.6646]
[1732942792073,2.73575,3655.3,3654.8,1.6646]
[1732942792309,0.55,3655.2,3654.8,1.6646]
[1732942793917,0.55,3655.2,3654.7,2.73619]
[1732942794261,0.0116,3655.4,3654.8,2.73612]
[1732942794507,0.0116,3655.4,3654.9,2.73604]
[1732942794708,0.55,3655.5,3654.9,2.73604]
[1732942794908,0.0116,3655.7,3655.1,2.73589]
[1732942794909,3.29705,3655.7,3655.1,2.73589]
[1732942795095,3.29705,3655.7,3654.9,2.73604]
[1732942795276,3.29705,3655.7,3655.0,3.3545542]
[1732942795815,3.29705,3655.7,3655.1,1.6646]
[1732942796814,0.55,3655.5,3655.1,1.6646]
[1732942799175,0.55,3655.5,3655.0,0.6185942]
[1732942799806,0.55,3655.5,3655.0,3.3545642]
[1732942799981,0.55,3655.5,3655.1,0.77552742]
[1732942800398,3.28565,3655.5,3655.1,0.77552742]
[1732942800583,0.55,3655.3,3654.2,1.6646]
[1732942800809,0.55,3655.3,3654.9,2.73601]
[1732942801020,0.55,3655.4,3654.9,2.73601]
[1732942801191,3.28569,3655.4,3654.7,2.73616]
[1732942801397,0.55,3655.5,3654.8,2.73606]
[1732942801597,3.28566,3655.5,3654.8,4.947882]
[1732942801795,0.55,3655.5,3654.8,4.947882]
[1732942802085,0.55,3655.3,3655.0,2.73594]
[1732942802281,0.55,3655.5,3655.0,2.73594]
[1732942802544,0.55,3655.5,3654.8,2.211822]
[1732942802696,0.55,3655.5,3654.9,3.2308382]
[1732942803207,0.55,3655.4,3654.9,3.2308382]
[1732942803388,0.55,3655.4,3655.0,2.73591]
[1732942803589,0.55,3655.5,3655.0,2.73591]
[1732942803852,0.55,3655.6,3655.0,2.73591]
[1732942803998,0.55,3655.6,3655.1,0.76313482]
[1732942804321,0.55,3655.4,3655.1,0.76313482]
[1732942804749,0.55,3655.5,3655.1,0.76313482]